fUST/lending_fUST_20250729
["ID","MTS","AMOUNT","RATE_DAILY","PERIOD"]
[375864443,1753764666621,-1500.0,0.000249,14]
[375864444,1753764666631,-1500.0,0.000249,14]
[375864445,1753764666641,-1500.0,0.000249,14]
[375864446,1753764666650,-1500.0,0.000249,14]
[375864447,1753764666659,-1500.0,0.000249,14]
[375864448,1753764666669,-1500.0,0.000249,14]
[375864449,1753764666679,-1500.0,0.000249,14]
[375864450,1753764666688,-1500.0,0.000249,14]
[375864451,1753764666698,-151.0,0.000249,7]
[375864452,1753764666707,-1500.0,0.000249,14]
[375864453,1753764666717,-1500.0,0.000249,14]
[375864454,1753764666728,-1500.0,0.000249,14]
[375864455,1753764666738,-1500.0,0.000249,14]
[375864456,1753764666747,-1500.0,0.000249,14]
[375864457,1753764666757,-1500.0,0.000249,14]
[375864458,1753764666766,-1500.0,0.000249,14]
[375864459,1753764666775,-1500.0,0.000249,14]
[375864460,1753764666787,-1500.0,0.000249,14]
[375864461,1753764666797,-1500.0,0.000249,14]
[375864462,1753764666807,-1500.0,0.000249,14]
[375864463,1753764666818,-1500.0,0.000249,14]
[375864464,1753764666828,-1500.0,0.000249,14]
[375864465,1753764666838,-1500.0,0.000249,14]
[375864466,1753764666849,-1500.0,0.000249,14]
[375864467,1753764666862,-1500.0,0.000249,14]
[375864468,1753764666871,-1500.0,0.000249,14]
[375864469,1753764666881,-1500.0,0.000249,14]
[375864470,1753764666890,-1500.0,0.000249,14]
[375864471,1753764666900,-1500.0,0.000249,14]
[375864472,1753764666909,-1500.0,0.000249,14]
[375864473,1753764666919,-1500.0,0.000249,14]
[375864474,1753764666928,-1500.0,0.000249,14]
[375864475,1753764666938,-1500.0,0.000249,14]
[375864476,1753764666948,-1500.0,0.000249,14]
[375864477,1753764666958,-1500.0,0.000249,14]
[375864478,1753764666967,-1500.0,0.000249,14]
[375864479,1753764666977,-1500.0,0.000249,14]
[375864480,1753764666986,-1500.0,0.000249,14]
[375864481,1753764666996,-1500.0,0.000249,14]
[375864482,1753764667006,-1500.0,0.000249,14]
[375864483,1753764667015,-1500.0,0.000249,14]
[375864484,1753764667025,-1500.0,0.000249,14]
[375864485,1753764667034,-1500.0,0.000249,14]
[375864486,1753764667044,-1500.0,0.000249,14]
[375864487,1753764667053,-1500.0,0.000249,14]
[375864488,1753764667062,-1500.0,0.000249,14]
[375864489,1753764667072,-1500.0,0.000249,14]
[375864490,1753764667081,-1500.0,0.000249,14]
[375864491,1753764667090,-1500.0,0.000249,14]
[375864492,1753764667100,-1500.0,0.000249,14]
[375864493,1753764667109,-1500.0,0.000249,14]
[375864494,1753764667118,-1500.0,0.000249,14]
[375864495,1753764667127,-1500.0,0.000249,14]
[375864496,1753764667137,-1500.0,0.000249,14]
[375864497,1753764667147,-1500.0,0.000249,14]
[375864498,1753764667157,-1500.0,0.000249,14]
[375864499,1753764667166,-1500.0,0.000249,14]
[375864500,1753764667175,-1500.0,0.000249,14]
[375864501,1753764667184,-1500.0,0.000249,14]
[375864502,1753764667194,-1402.3194,0.000249,14]
[375864503,1753764667203,-180.427728,0.000249,7]
[375864504,1753764667212,-180.427728,0.000249,7]
[375864505,1753764667221,-194.866001,0.000249,7]
[375864506,1753764667230,-153.055447,0.000249,7]
[375864507,1753764667240,-772.4,0.000249,7]
[375864508,1753764667250,-233.653696,0.000249,7]
[375864509,1753764667259,-233.653696,0.000249,7]
[375864510,1753764667268,-5393.88,0.000249,7]
[375864511,1753764667279,-1628.74,0.000249,7]
[375864512,1753764667288,-151.0,0.000249,7]
[375864513,1753764667298,-151.0,0.000249,7]
[375864514,1753764667308,-230.860145,0.000249,7]
[375864515,1753764667318,-151.0,0.000249,7]
[375864516,1753764667328,-320.501262,0.000249,7]
[375864517,1753764667354,-151.0,0.000249,7]
[375864518,1753764667366,-320.501262,0.000249,7]
[375864519,1753764667376,-256.648826,0.000249,7]
[375864520,1753764667386,-256.648826,0.000249,7]
[375864521,1753764667396,-151.0,0.000249,7]
[375864522,1753764667407,-151.0,0.000249,7]
[375864523,1753764667418,-151.0,0.000249,7]
[375864524,1753764667428,-230.579603,0.000249,7]
[375864525,1753764667438,-230.579603,0.000249,7]
[375864526,1753764667448,-151.0,0.000249,7]
[375864527,1753764667460,-887453.192202,0.000249,2]
[375864528,1753764667470,-151.0,0.000249,7]
[375864529,1753764667481,-486.47,0.00024931,2]
[375864530,1753764667492,-539.9,0.00024931,2]
[375864531,1753764667503,-3128.07,0.00024931,2]
[375864532,1753764667513,-1169.85,0.00024931,2]
[375864533,1753764667524,-492.68,0.00024931,2]
[375864534,1753764667536,-1149.81,0.00024931,2]
[375864535,1753764667547,-460.0,0.00024931,2]
[375864536,1753764667557,-1909.47,0.00024931,2]
[375864537,1753764667567,-1316.19,0.00024931,2]
[375864538,1753764667578,-583.46,0.00024931,2]
[375864539,1753764667588,-537.89,0.00024931,2]
[375864540,1753764667598,-652.33,0.00024931,2]
[375864541,1753764667608,-1679.17,0.00024931,2]
[375864542,1753764667619,-557.66,0.00024931,2]
[375864543,1753764667630,-1048.64,0.00024931,2]
[375864544,1753764667640,-460.0,0.00024931,2]
[375864545,1753764667651,-504.22,0.00024931,2]
[375864546,1753764667662,-1125.68,0.00024931,2]
[375864547,1753764667672,-1269.69,0.00024931,2]
[375864548,1753764667684,-1596.9,0.00024931,2]
[375864549,1753764667695,-1093.2,0.00024931,2]
[375864550,1753764667705,-901.92,0.00024931,2]
[375864551,1753764667715,-460.0,0.00024931,2]
[375864552,1753764667725,-1425.95,0.00024931,2]
[375864553,1753764667735,-551.56,0.00024931,2]
[375864554,1753764667746,-4145.08,0.00024931,2]
[375864555,1753764667755,-561.7,0.00024931,2]
[375864556,1753764667765,-649.62,0.00024931,2]
[375864557,1753764667775,-3108.00752739,0.0002495,2]
[375864558,1753764667787,-154.373696,0.0002496,30]
[375864559,1753764667798,-695.6,0.00024961,6]
[375864560,1753764667808,-1132.359232,0.0002498,5]
[375864561,1753764667818,-161.0,0.00025,5]
[375864562,1753764667828,-160.0,0.00025,3]
[375864563,1753764667838,-160.0,0.00025,7]
[375864564,1753764667847,-1064.14187046,0.00025,2]
[375864565,1753764667857,-16006.8471671,0.00025,2]
[375864566,1753764667868,-93531.49990395,0.00025,2]
[375864567,1753764667878,-2620.25287783,0.00025,2]
[375864568,1753764667888,-207.78038688,0.00025,2]
[375864569,1753764667898,-10364.0,0.00025,2]
[375864570,1753764667907,-358.6888378,0.00025,2]
[375864571,1753764667916,-500.0,0.00025,2]
[375864572,1753764667926,-4638.87128057,0.00025,2]
[375864573,1753764667936,-153.0,0.00025,2]
[375864574,1753764667946,-20000.0,0.00025,2]
[375864575,1753764667957,-183.027764,0.00025,7]
[375864576,1753764667967,-153.840849,0.00025,7]
[375864577,1753764667982,-151.0,0.00025,7]
[375864578,1753764667992,-201.792788,0.00025,7]
[375864579,1753764668002,-1000.0,0.00025,5]
[375864580,1753764668012,-151.0,0.00025,7]
[375864581,1753764668022,-487.50545559,0.00025,5]
[375864582,1753764668031,-151.0,0.00025,7]
[375864583,1753764668042,-151.0,0.00025,7]
[375864584,1753764668052,-192.734262,0.00025,7]
[375864585,1753764668062,-192.734262,0.00025,7]
[375864586,1753764668071,-151.0,0.00025,7]
[375864587,1753764668082,-151.0,0.00025,7]
[375864588,1753764668092,-151.0,0.00025,7]
[375864589,1753764668101,-151.0,0.00025,7]
[375864590,1753764668111,-665.756305,0.00025,7]
[375864591,1753764668121,-151.0,0.00025,7]
[375864592,1753764668130,-665.756305,0.00025,7]
[375864593,1753764668140,-192.98117,0.00025,7]
[375864594,1753764668150,-151.0,0.00025,7]
[375864595,1753764668160,-192.98117,0.00025,7]
[375864596,1753764668170,-500.0,0.0002503,2]
[375864597,1753764668181,-2159.0,0.00025034,2]
[375864598,1753764668190,-407.0,0.00025034,2]
[375864599,1753764668201,-407.0,0.00025034,2]
[375864600,1753764668211,-969.0,0.00025034,2]
[375864601,1753764668221,-150.0,0.00025034,2]
[375864602,1753764668231,-2200.0,0.00025083,2]
[375864603,1753764668240,-500.0,0.00025136,2]
[375864604,1753764668250,-206.0,0.0002516,2]
[375864605,1753764668259,-150.0,0.00025178,2]
[375864606,1753764668270,-2001.0083313,0.00025192,2]
[375864607,1753764668282,-155.0,0.00025192,30]
[375864608,1753764668294,-151.0,0.00025205,7]
[375864609,1753764668304,-151.0,0.00025205,7]
[375864610,1753764668314,-153.614069,0.00025205,7]
[375864611,1753764668323,-180.427728,0.00025205,7]
[375864612,1753764668333,-180.427728,0.00025205,7]
[375864613,1753764668342,-151.0,0.00025205,7]
[375864614,1753764668352,-233.653696,0.00025205,7]
[375864615,1753764668361,-233.653696,0.00025205,7]
[375864616,1753764668371,-151.0,0.00025205,7]
[375864617,1753764668380,-486.47,0.00025205,2]
[375864618,1753764668390,-539.9,0.00025205,2]
[375864619,1753764668400,-3128.07,0.00025205,2]
[375864620,1753764668409,-1169.85,0.00025205,2]
[375864621,1753764668419,-492.68,0.00025205,2]
[375864622,1753764668429,-1149.81,0.00025205,2]
[375864623,1753764668439,-568.58942219,0.00025205,2]
[375864624,1753764668450,-1909.47,0.00025205,2]
[375864625,1753764668459,-1316.19,0.00025205,2]
[375864626,1753764668469,-583.46,0.00025205,2]
[375864627,1753764668479,-537.89,0.00025205,2]
[375864628,1753764668488,-652.33,0.00025205,2]
[375864629,1753764668498,-1679.17,0.00025205,2]
[375864630,1753764668508,-557.66,0.00025205,2]
[375864631,1753764668519,-1048.64,0.00025205,2]
[375864632,1753764668530,-460.0,0.00025205,2]
[375864633,1753764668539,-504.22,0.00025205,2]
[375864634,1753764668550,-1125.68,0.00025205,2]
[375864635,1753764668560,-1269.69,0.00025205,2]
[375864636,1753764668571,-1596.9,0.00025205,2]
[375864637,1753764668581,-1093.2,0.00025205,2]
[375864638,1753764668591,-901.92,0.00025205,2]
[375864639,1753764668604,-460.0,0.00025205,2]
[375864640,1753764668614,-1425.95,0.00025205,2]
[375864641,1753764668624,-551.56,0.00025205,2]
[375864642,1753764668634,-4145.08,0.00025205,2]
[375864643,1753764668644,-561.7,0.00025205,2]
[375864644,1753764668654,-649.62,0.00025205,2]
[375864645,1753764668665,-507.35892123,0.00025251,2]
[375864646,1753764668675,-500.0,0.0002538,5]
[375864647,1753764668836,-500.0,0.0002538,5]
[375864648,1753764668847,-695.6,0.00025413,7]
[375864649,1753764668856,-486.70683807,0.00025479,2]
[375864650,1753764668866,-540.0999983,0.00025479,2]
[375864651,1753764668878,-3128.19110486,0.00025479,2]
[375864652,1753764668887,-1169.94142698,0.00025479,2]
[375864653,1753764668897,-492.70985841,0.00025479,2]
[375864654,1753764668906,-1149.88734644,0.00025479,2]
[375864655,1753764668916,-1909.47386683,0.00025479,2]
[375864656,1753764668926,-1316.22367327,0.00025479,2]
[375864657,1753764668935,-583.46461044,0.00025479,2]
[375864658,1753764668945,-537.92095908,0.00025479,2]
[375864659,1753764668954,-652.38699417,0.00025479,2]
[375864660,1753764668963,-1679.38413335,0.00025479,2]
[375864661,1753764668974,-557.82444485,0.00025479,2]
[375864662,1753764668983,-1048.73900711,0.00025479,2]
[375864663,1753764668995,-166.0983907,0.00025479,2]
[375864664,1753764669005,-504.37680332,0.00025479,2]
[375864665,1753764669015,-1125.89179513,0.00025479,2]
[375864666,1753764669024,-1269.76383202,0.00025479,2]
[375864667,1753764669034,-1597.00532593,0.00025479,2]
[375864668,1753764669044,-1093.26290512,0.00025479,2]
[375864669,1753764669054,-902.12735625,0.00025479,2]
[375864670,1753764669063,-348.89737563,0.00025479,2]
[375864671,1753764669073,-1426.01196436,0.00025479,2]
[375864672,1753764669083,-551.74,0.00025479,2]
[375864673,1753764669092,-4145.21962524,0.00025479,2]
[375864674,1753764669101,-561.71964402,0.00025479,2]
[375864675,1753764669111,-649.62934741,0.00025479,2]
[375864676,1753764669120,-154.373696,0.0002548,30]
[375864677,1753764669129,-150.0,0.00025556,2]
[375864678,1753764669139,-150.0,0.00025556,2]
[375864679,1753764669149,-150.0,0.00025556,2]
[375864680,1753764669158,-206.0,0.0002556,2]
[375864681,1753764669168,-2001.0083313,0.00025733,2]
[375864682,1753764669179,-150.15,0.0002574,30]
[375864683,1753764669188,-695.6,0.00025866,7]
[375864684,1753764669198,-216.008022,0.00025897,7]
[375864685,1753764669207,-151.0,0.00025897,7]
[375864686,1753764669217,-151.0,0.00025897,7]
[375864687,1753764669226,-151.0,0.00025897,7]
[375864688,1753764669235,-151.0,0.00025897,7]
[375864689,1753764669247,-200.0,0.00025897,15]
[375864690,1753764669256,-200.0,0.00025897,15]
[375864691,1753764669266,-200.0,0.00025897,15]
[375864692,1753764669275,-200.0,0.00025897,15]
[375864693,1753764669285,-200.0,0.00025897,15]
[375864694,1753764669294,-200.0,0.00025897,15]
[375864695,1753764669303,-200.0,0.00025897,15]
[375864696,1753764669313,-200.0,0.00025897,15]
[375864697,1753764669323,-200.0,0.00025897,15]
[375864698,1753764669333,-394.0,0.00025897,15]
[375864699,1753764669342,-2000.0,0.000259,2]
[375864700,1753764669352,-2000.0,0.000259,2]
[375864701,1753764669361,-206.0,0.0002596,2]
[375864702,1753764669370,-11000.0,0.00026,5]
[375864703,1753764669379,-51995.88809034,0.00026,30]
[375864704,1753764669388,-151.0,0.00026,7]
[375864705,1753764669398,-151.0,0.00026,7]
[375864706,1753764669407,-320.501262,0.00026,7]
[375864707,1753764669416,-151.0,0.00026,7]
[375864708,1753764669426,-320.501262,0.00026,7]
[375864709,1753764669437,-256.648826,0.00026,7]
[375864710,1753764669448,-256.648826,0.00026,7]
[375864711,1753764669459,-151.0,0.00026,7]
[375864712,1753764669470,-151.0,0.00026,7]
[375864713,1753764669480,-151.0,0.00026,7]
[375864714,1753764669489,-230.579603,0.00026,7]
[375864715,1753764669500,-230.579603,0.00026,7]
[375864716,1753764669510,-151.0,0.00026,7]
[375864717,1753764669519,-312.16666667,0.00026,30]
[375864718,1753764669529,-526.67226028,0.00026,30]
[375864719,1753764669540,-206.541168,0.00026,7]
[375864720,1753764669549,-202.3829982,0.00026027,60]
[375864721,1753764669559,-151.45830873,0.00026027,60]
[375864722,1753764669568,-151.0,0.00026027,60]
[375864723,1753764669578,-202.77827561,0.00026027,60]
[375864724,1753764669589,-151.27403374,0.00026027,60]
[375864725,1753764669599,-151.15142183,0.00026027,60]
[375864726,1753764669608,-151.0,0.00026027,60]
[375864727,1753764669618,-151.73576305,0.00026027,60]
[375864728,1753764669628,-151.9661062,0.00026027,60]
[375864729,1753764669637,-151.0,0.00026027,60]
[375864730,1753764669646,-151.95678648,0.00026027,60]
[375864731,1753764669657,-151.27400105,0.00026027,60]
[375864732,1753764669666,-151.51466692,0.00026027,60]
[375864733,1753764669676,-500.0,0.00026027,60]
[375864734,1753764669685,-151.06560074,0.00026027,60]
[375864735,1753764669696,-151.20221908,0.00026027,60]
[375864736,1753764669705,-151.0,0.00026027,14]
[375864737,1753764669715,-201.87631447,0.00026027,60]
[375864738,1753764669724,-151.0,0.00026027,60]
[375864739,1753764669734,-151.29593713,0.00026027,60]
[375864740,1753764669745,-152.79431702,0.00026027,60]
[375864741,1753764669755,-151.93275479,0.00026027,60]
[375864742,1753764669765,-500.0,0.00026027,2]
[375864743,1753764669775,-151.0,0.00026027,7]
[375864744,1753764669786,-151.64454431,0.00026027,60]
[375864745,1753764669798,-151.0,0.00026027,60]
[375864746,1753764669807,-21687.28,0.000261,2]
[375864747,1753764669816,-192.734262,0.000261,7]
[375864748,1753764669827,-192.734262,0.000261,7]
[375864749,1753764669837,-156.959795,0.000261,7]
[375864750,1753764669847,-151.0,0.000261,7]
[375864751,1753764669857,-665.756305,0.000261,7]
[375864752,1753764669867,-665.756305,0.000261,7]
[375864753,1753764669877,-192.98117,0.000261,7]
[375864754,1753764669886,-192.98117,0.000261,7]
[375864755,1753764669895,-1444.0,0.00026137,120]
[375864756,1753764669905,-2001.0083313,0.00026275,2]
[375864757,1753764669914,-200.0,0.000263,120]
[375864758,1753764669923,-772.4,0.000263,7]
[375864759,1753764669933,-5393.88,0.000263,7]
[375864760,1753764669942,-1628.74,0.000263,7]
[375864761,1753764669952,-151.0,0.00026301,60]
[375864762,1753764669961,-151.0,0.00026301,60]
[375864763,1753764669970,-500.0,0.00026301,60]
[375864764,1753764669981,-151.0,0.00026301,14]
[375864765,1753764669991,-152.77212631,0.00026301,60]
[375864766,1753764670001,-500.0,0.00026301,2]
[375864767,1753764670010,-153.8765087,0.00026301,60]
[375864768,1753764670020,-695.6,0.00026318,15]
[375864769,1753764670029,-151.0,0.00026352,7]
[375864770,1753764670038,-430.1392862,0.00026356,2]
[375864771,1753764670048,-430.1392862,0.00026356,2]
[375864772,1753764670058,-430.1392862,0.00026356,2]
[375864773,1753764670068,-430.1392862,0.00026356,2]
[375864774,1753764670078,-154.313196,0.00026357,7]
[375864775,1753764670087,-151.0,0.00026357,7]
[375864776,1753764670096,-151.0,0.00026357,7]
[375864777,1753764670106,-151.0,0.00026357,7]
[375864778,1753764670115,-249.221861,0.00026357,7]
[375864779,1753764670125,-230.579603,0.00026357,7]
[375864780,1753764670133,-230.579603,0.00026357,7]
[375864781,1753764670143,-230.579603,0.00026357,7]
[375864782,1753764670152,-230.579603,0.00026357,7]
[375864783,1753764670162,-230.579603,0.00026357,7]
[375864784,1753764670171,-230.579603,0.00026357,7]
[375864785,1753764670181,-230.579603,0.00026357,7]
[375864786,1753764670190,-230.579603,0.00026357,7]
[375864787,1753764670200,-230.579603,0.00026357,7]
[375864788,1753764670209,-230.579606,0.00026357,7]
[375864789,1753764670220,-151.0,0.00026357,7]
[375864790,1753764670230,-161.966936,0.00026357,7]
[375864791,1753764670240,-151.0,0.00026359,7]
[375864792,1753764670250,-151.0,0.00026359,7]
[375864793,1753764670259,-180.427728,0.00026359,7]
[375864794,1753764670269,-180.427728,0.00026359,7]
[375864795,1753764670278,-180.427728,0.00026359,7]
[375864796,1753764670287,-180.427732,0.00026359,7]
[375864797,1753764670296,-206.0,0.0002636,2]
[375864798,1753764670306,-151.0,0.00026361,7]
[375864799,1753764670315,-151.0,0.00026361,7]
[375864800,1753764670325,-151.0,0.00026361,7]
[375864801,1753764670334,-500.0,0.00026362,2]
[375864802,1753764670344,-733.8,0.00026365,120]
[375864803,1753764670353,-151.0,0.00026367,7]
[375864804,1753764670370,-151.0,0.00026367,7]
[375864805,1753764670384,-151.0,0.00026367,7]
[375864806,1753764670394,-151.0,0.00026367,7]
[375864807,1753764670405,-155.667427,0.00026367,7]
[375864808,1753764670415,-151.0,0.00026367,7]
[375864809,1753764670425,-151.0,0.00026367,7]
[375864810,1753764670437,-210.843502,0.00026367,7]
[375864811,1753764670447,-320.501262,0.00026367,7]
[375864812,1753764670457,-320.501262,0.00026367,7]
[375864813,1753764670467,-320.501262,0.00026367,7]
[375864814,1753764670477,-154.111085,0.00026367,7]
[375864815,1753764670487,-320.501262,0.00026367,7]
[375864816,1753764670498,-320.501262,0.00026367,7]
[375864817,1753764670508,-320.501262,0.00026367,7]
[375864818,1753764670517,-320.501262,0.00026367,7]
[375864819,1753764670527,-320.501262,0.00026367,7]
[375864820,1753764670537,-320.501262,0.00026367,7]
[375864821,1753764670547,-320.501262,0.00026367,7]
[375864822,1753764670557,-320.501262,0.00026367,7]
[375864823,1753764670567,-320.501262,0.00026367,7]
[375864824,1753764670577,-320.501262,0.00026367,7]
[375864825,1753764670586,-320.501269,0.00026367,7]
[375864826,1753764670596,-256.648826,0.00026367,7]
[375864827,1753764670606,-256.648826,0.00026367,7]
[375864828,1753764670615,-256.648826,0.00026367,7]
[375864829,1753764670625,-256.648826,0.00026367,7]
[375864830,1753764670634,-256.648826,0.00026367,7]
[375864831,1753764670643,-256.648826,0.00026367,7]
[375864832,1753764670653,-256.648826,0.00026367,7]
[375864833,1753764670663,-256.648826,0.00026367,7]
[375864834,1753764670673,-256.648826,0.00026367,7]
[375864835,1753764670683,-256.648826,0.00026367,7]
[375864836,1753764670692,-256.648826,0.00026367,7]
[375864837,1753764670701,-256.648826,0.00026367,7]
[375864838,1753764670711,-151.0,0.00026367,7]
[375864839,1753764670721,-151.0,0.00026367,7]
[375864840,1753764670731,-233.653696,0.00026373,7]
[375864841,1753764670740,-233.653694,0.00026373,7]
[375864842,1753764670750,-258.327475,0.00026373,7]
[375864843,1753764670759,-3362.06,0.00026373,120]
[375864844,1753764670769,-151.0,0.00026375,7]
[375864845,1753764670778,-151.0,0.00026375,7]
[375864846,1753764670790,-153.591479,0.00026375,7]
[375864847,1753764670801,-151.0,0.00026375,7]
[375864848,1753764670812,-151.0,0.00026375,7]
[375864849,1753764670823,-151.0,0.00026375,7]
[375864850,1753764670835,-151.0,0.00026375,7]
[375864851,1753764670847,-151.0,0.00026375,7]
[375864852,1753764670856,-217.8877,0.00026375,7]
[375864853,1753764670865,-151.0,0.00026375,7]
[375864854,1753764670876,-151.0,0.00026375,7]
[375864855,1753764670886,-151.0,0.00026375,7]
[375864856,1753764671060,-152.999465,0.00026375,7]
[375864857,1753764671072,-192.734262,0.00026375,7]
[375864858,1753764671083,-192.734262,0.00026375,7]
[375864859,1753764671094,-192.734262,0.00026375,7]
[375864860,1753764671104,-192.734262,0.00026375,7]
[375864861,1753764671115,-192.734262,0.00026375,7]
[375864862,1753764671124,-192.734262,0.00026375,7]
[375864863,1753764671134,-192.734262,0.00026375,7]
[375864864,1753764671144,-192.734262,0.00026375,7]
[375864865,1753764671154,-192.734262,0.00026375,7]
[375864866,1753764671163,-192.734252,0.00026375,7]
[375864867,1753764671173,-151.0,0.00026375,7]
[375864868,1753764671182,-255.462899,0.00026375,7]
[375864869,1753764671192,-151.0,0.00026375,7]
[375864870,1753764671201,-151.0,0.00026375,7]
[375864871,1753764671211,-151.0,0.00026375,7]
[375864872,1753764671221,-151.0,0.00026375,7]
[375864873,1753764671230,-151.0,0.00026375,7]
[375864874,1753764671240,-151.0,0.00026375,7]
[375864875,1753764671250,-151.0,0.00026375,7]
[375864876,1753764671259,-151.0,0.00026375,7]
[375864877,1753764671269,-151.0,0.00026375,7]
[375864878,1753764671278,-151.0,0.00026375,7]
[375864879,1753764671288,-235.496154,0.00026375,7]
[375864880,1753764671305,-665.756305,0.00026375,7]
[375864881,1753764671319,-665.756305,0.00026375,7]
[375864882,1753764671328,-665.756305,0.00026375,7]
[375864883,1753764671339,-665.756305,0.00026375,7]
[375864884,1753764671348,-665.756305,0.00026375,7]
[375864885,1753764671358,-151.0,0.00026375,7]
[375864886,1753764671367,-151.0,0.00026375,7]
[375864887,1753764671377,-151.0,0.00026375,7]
[375864888,1753764671387,-151.0,0.00026375,7]
[375864889,1753764671396,-151.0,0.00026375,7]
[375864890,1753764671406,-225.772736,0.00026375,7]
[375864891,1753764671416,-665.756305,0.00026375,7]
[375864892,1753764671425,-665.756305,0.00026375,7]
[375864893,1753764671435,-665.756305,0.00026375,7]
[375864894,1753764671445,-665.756305,0.00026375,7]
[375864895,1753764671455,-665.756297,0.00026375,7]
[375864896,1753764671464,-151.0,0.00026375,7]
[375864897,1753764671473,-151.0,0.00026375,7]
[375864898,1753764671483,-151.0,0.00026375,7]
[375864899,1753764671493,-238.63,0.00026376,120]
[375864900,1753764671503,-152.035269,0.00026376,7]
[375864901,1753764671512,-151.0,0.00026376,7]
[375864902,1753764671524,-151.0,0.00026376,7]
[375864903,1753764671544,-151.0,0.00026376,7]
[375864904,1753764671554,-161.334964,0.00026376,7]
[375864905,1753764671564,-151.0,0.00026376,7]
[375864906,1753764671573,-151.0,0.00026376,7]
[375864907,1753764671583,-151.0,0.00026376,7]
[375864908,1753764671595,-151.0,0.00026376,7]
[375864909,1753764671605,-151.0,0.00026376,7]
[375864910,1753764671615,-151.0,0.00026376,7]
[375864911,1753764671626,-151.0,0.00026376,7]
[375864912,1753764671636,-151.0,0.00026376,7]
[375864913,1753764671646,-151.0,0.00026376,7]
[375864914,1753764671656,-296.108513,0.00026376,7]
[375864915,1753764671665,-151.0,0.00026376,7]
[375864916,1753764671675,-151.0,0.00026376,7]
[375864917,1753764671685,-151.0,0.00026376,7]
[375864918,1753764671695,-151.0,0.00026376,7]
[375864919,1753764671706,-151.0,0.00026376,7]
[375864920,1753764671715,-151.0,0.00026376,7]
[375864921,1753764671725,-151.0,0.00026376,7]
[375864922,1753764671735,-151.0,0.00026376,7]
[375864923,1753764671745,-754.31,0.00026378,7]
[375864924,1753764671754,-1150.187026,0.0002638,120]
[375864925,1753764671763,-350.0,0.00026384,120]
[375864926,1753764671773,-684.0,0.00026386,120]
[375864927,1753764671783,-261.64586004,0.000264,14]
[375864928,1753764671798,-158.81,0.000264,120]
[375864929,1753764671809,-500.0,0.00026402,120]
[375864930,1753764671819,-320.6,0.00026414,120]
[375864931,1753764671828,-584.0,0.00026428,120]
[375864932,1753764671839,-192.98117,0.0002643,7]
[375864933,1753764671851,-192.98117,0.0002643,7]
[375864934,1753764671860,-192.98117,0.0002643,7]
[375864935,1753764671871,-192.98117,0.0002643,7]
[375864936,1753764671881,-192.98117,0.0002643,7]
[375864937,1753764671891,-192.981166,0.0002643,7]
[375864938,1753764671902,-163135.0364102,0.0002643,20]
[375864939,1753764671913,-3164922.9508844,0.0002643,20]
[375864940,1753764672270,-529.18,0.00019178,2]
[375864941,1753764672280,-174.176206,0.000215,2]
[375864942,1753764672289,-174.176206,0.000215,2]